[Event "4th Chessfestival Gredine 2018"]
[Site "Ortisei"]
[Date "2018.06.20"]
[Round "5.13"]
[White "De Vita, Gianni"]
[Black "Vaishali R"]
[Result "1/2-1/2"]
[ECO "B53"]
[WhiteElo "2036"]
[BlackElo "2310"]
[Annotator "NA"]
[PlyCount "88"]
[EventDate "2018.06.16"]
[EventType "swiss"]
[EventCountry "ITA"]
[SourceTitle "playchess.com"]
[Source "ChessBase"]
[SourceQuality "1"]
[TimeControl "40/5400+30:1800+30"]

1. e4 {[%emt 0:00:30]} c5 {[%emt 0:01:00]} 2. Nf3 {[%emt 0:01:30]} d6 {[%emt 0:00:30]} 3. d4 {[%emt 0:01:30]} cxd4 {[%emt 0:00:00]} 4. Qxd4 {[%emt 0:00:30]} Nc6 {[%emt 0:01:00]} 5. Bb5 {[%emt 0:00:30]} Bd7 {[%emt 0:01:30]} 6. Bxc6 {[%emt 0:00:30]} Bxc6 {[%emt 0:00:00]} 7. Bg5 {[%emt 0:05:30]} h6 {[%emt 0:04:00]} 8. Bh4 {[%emt 0:00:30]} e5 {[%emt 0:05:30]} 9. Qe3 {[%emt 0:06:30]} Qb6 {[%emt 0:12:30]} 10. Qxb6 {[%emt 0:02:30]} axb6 {[%emt 0:02:30]} 11. Nfd2 {[%emt 0:02:30]} g5 {[%emt 0:02:30]} 12. Bg3 {[%emt 0:00:30]} f5 {[%emt 0:02:30]} 13. f3 {[%emt 0:01:30]} f4 {[%emt 0:00:30]} 14. Bf2 {[%emt 0:00:30]} b5 {[%emt 0:00:30]} 15. c4 {[%emt 0:04:30]} b4 {[%emt 0:04:30]} 16. O-O {[%emt 0:05:30]} Nf6 {[%emt 0:04:30]} 17. Nb3 {[%emt 0:04:30]} g4 {[%emt 0:08:30]} 18. N1d2 {[%emt 0:00:30]} Rg8 {[%emt 0:01:30]} 19. Kh1 {[%emt 0:01:30]} Nh5 {[%emt 0:05:30]} 20. Bb6 {[%emt 0:08:30]} Ra4 {[%emt 0:25:34]} 21. Na5 {[%emt 0:05:30]} Nf6 {[%emt 0:03:55]} 22. b3 {[%emt 0:01:30]} Ra3 {[%emt 0:01:11]} 23. Nb1 {[%emt 0:00:30]} gxf3 {[%emt 0:01:18]} 24. gxf3 {[%emt 0:01:30]} Rxa5 {[%emt 0:00:27]} 25. Bxa5 {[%emt 0:00:00]} Nxe4 {[%emt 0:00:18]} 26. Bxb4 {[%emt 0:01:00]} Be7 {[%emt 0:05:52]} 27. Nd2 {[%emt 0:02:30]} Nxd2 {[%emt 0:01:00]} 28. Bxd2 {[%emt 0:00:30]} e4 {[%emt 0:00:09]} 29. Bxf4 {[%emt 0:06:30]} exf3 {[%emt 0:00:03]} 30. Rf2 {[%emt 0:00:30]} Rg6 {[%emt 0:06:02]} 31. Re1 {[%emt 0:08:30]} Kd7 {[%emt 0:00:25]} 32. Bg3 {[%emt 0:06:30]} h5 {[%emt 0:00:35]} 33. Re3 {[%emt 0:01:48]} h4 {[%emt 0:00:31]} 34. Rxe7+ {[%emt 0:01:12]} Kxe7 {[%emt 0:00:06]} 35. Bxh4+ {[%emt 0:00:02]} Ke6 {[%emt 0:00:28]} 36. Bg3 {[%emt 0:00:37]} Kf5 {[%emt 0:00:26]} 37. Kg1 {[%emt 0:00:29]} Ke4 {[%emt 0:00:42]} 38. Rf1 {[%emt 0:04:08]} Kd3 {[%emt 0:00:55]} 39. Kf2 {[%emt 0:01:41]} Re6 {[%emt 0:00:28]} 40. Rd1+ {[%emt 0:00:18]} Kc2 {[%emt 0:30:16]} 41. Re1 {[%emt 0:03:15]} d5 {[%emt 0:00:00]} 42. cxd5 {[%emt 0:00:30]} Bxd5 {[%emt 0:00:00]} 43. Bd6 {[%emt 0:00:30]} Kb2 {[%emt 0:00:00]} 44. b4 {[%emt 0:00:30]} Kxa2 1/2-1/2

[Event "4th Chessfestival Gredine 2018"]
[Site "Ortisei"]
[Date "2018.06.20"]
[Round "5.14"]
[White "Sarkar, Justin"]
[Black "Riebel, Werner"]
[Result "1-0"]
[ECO "D63"]
[WhiteElo "2297"]
[BlackElo "2113"]
[Annotator "NA"]
[PlyCount "61"]
[EventDate "2018.06.16"]
[EventType "swiss"]
[EventCountry "ITA"]
[SourceTitle "playchess.com"]
[Source "ChessBase"]
[SourceQuality "1"]
[TimeControl "40/5400+30:1800+30"]

1. d4 {[%emt 0:00:30]} d5 {[%emt 0:01:00]} 2. c4 {[%emt 0:00:00]} e6 {[%emt 0:00:00]} 3. Nc3 {[%emt 0:01:00]} Nf6 {[%emt 0:00:00]} 4. Bg5 {[%emt 0:00:30]} Be7 {[%emt 0:00:30]} 5. e3 {[%emt 0:00:00]} Nbd7 {[%emt 0:00:00]} 6. Nf3 {[%emt 0:01:00]} O-O {[%emt 0:00:00]} 7. Rc1 {[%emt 0:01:30]} dxc4 {[%emt 0:02:30]} 8. Bxc4 {[%emt 0:00:30]} a6 {[%emt 0:00:00]} 9. a4 {[%emt 0:05:30]} c5 {[%emt 0:02:00]} 10. O-O {[%emt 0:00:30]} h6 {[%emt 0:00:30]} 11. Bh4 {[%emt 0:00:30]} cxd4 {[%emt 0:00:30]} 12. exd4 {[%emt 0:01:30]} Nb6 {[%emt 0:01:30]} 13. Ba2 {[%emt 0:05:30]} Nbd5 {[%emt 0:01:30]} 14. Ne5 {[%emt 0:03:30]} Bd7 {[%emt 0:01:30]} 15. Bxd5 {[%emt 0:17:30]} Nxd5 {[%emt 0:04:30]} 16. Nxd5 {[%emt 0:00:00]} exd5 {[%emt 0:04:30]} 17. Bxe7 {[%emt 0:00:00]} Qxe7 {[%emt 0:00:30]} 18. Rc7 {[%emt 0:00:30]} Rad8 {[%emt 0:00:30]} 19. Rxb7 {[%emt 0:01:30]} Qe8 {[%emt 0:00:30]} 20. Re1 {[%emt 0:08:30]} Be6 {[%emt 0:02:30]} 21. b3 {[%emt 0:34:40]} Rb8 {[%emt 0:03:30]} 22. Rxb8 {[%emt 0:02:16]} Qxb8 {[%emt 0:00:30]} 23. Nd3 {[%emt 0:00:02]} Qb6 {[%emt 0:04:30]} 24. Nc5 {[%emt 0:00:05]} a5 {[%emt 0:02:30]} 25. h4 {[%emt 0:01:11]} Rd8 {[%emt 0:00:30]} 26. Qd2 {[%emt 0:00:20]} Rb8 {[%emt 0:03:30]} 27. Re5 {[%emt 0:00:31]} Qb4 {[%emt 0:01:30]} 28. Qe3 {[%emt 0:03:06]} Qa3 {[%emt 0:06:30]} 29. Kh2 {[%emt 0:00:17]} Qb2 {[%emt 0:05:30]} 30. f4 {[%emt 0:04:53]} g6 {[%emt 0:01:30]} 31. Rxe6 {[%emt 0:03:21]} 1-0

[Event "4th Chessfestival Gredine 2018"]
[Site "Ortisei"]
[Date "2018.06.20"]
[Round "5.15"]
[White "Fischer, Daniel"]
[Black "Seyb, Dieter"]
[Result "0-1"]
[ECO "B06"]
[WhiteElo "2263"]
[BlackElo "2179"]
[Annotator "NA"]
[PlyCount "92"]
[EventDate "2018.06.16"]
[EventType "swiss"]
[EventCountry "ITA"]
[SourceTitle "playchess.com"]
[Source "ChessBase"]
[SourceQuality "1"]
[TimeControl "40/5400+30:1800+30"]

1. e4 {[%emt 0:00:30]} g6 {[%emt 0:01:00]} 2. d4 {[%emt 0:00:00]} Bg7 {[%emt 0:00:00]} 3. Nc3 {[%emt 0:00:00]} d5 {[%emt 0:00:00]} 4. exd5 {[%emt 0:12:30]} c6 {[%emt 0:00:30]} 5. Bc4 {[%emt 0:02:30]} cxd5 {[%emt 0:02:30]} 6. Bxd5 {[%emt 0:05:30]} e6 {[%emt 0:00:30]} 7. Bf3 {[%emt 0:01:30]} Qxd4 {[%emt 0:02:30]} 8. Qxd4 {[%emt 0:03:30]} Bxd4 {[%emt 0:00:30]} 9. Nge2 {[%emt 0:00:30]} Be5 {[%emt 0:04:30]} 10. Bf4 {[%emt 0:06:30]} Bxf4 {[%emt 0:09:30]} 11. Nxf4 {[%emt 0:00:00]} Nc6 {[%emt 0:00:30]} 12. Nb5 {[%emt 0:08:00]} Ke7 {[%emt 0:03:30]} 13. O-O-O {[%emt 0:06:30]} Nf6 {[%emt 0:00:30]} 14. Rhe1 {[%emt 0:03:30]} Rd8 {[%emt 0:04:30]} 15. Rxd8 {[%emt 0:03:30]} Nxd8 {[%emt 0:08:30]} 16. Nc7 {[%emt 0:10:30]} Rb8 {[%emt 0:00:30]} 17. Ncd5+ {[%emt 0:07:30]} Nxd5 {[%emt 0:00:30]} 18. Nxd5+ {[%emt 0:00:30]} Kf8 {[%emt 0:01:30]} 19. Nf6 {[%emt 0:00:30]} h5 {[%emt 0:01:30]} 20. c4 {[%emt 0:03:30]} b6 {[%emt 0:08:30]} 21. Kc2 {[%emt 0:02:30]} Ke7 {[%emt 0:01:30]} 22. Nd5+ {[%emt 0:01:30]} Kf8 {[%emt 0:01:30]} 23. Nf6 {[%emt 0:00:30]} Ke7 {[%emt 0:04:30]} 24. Nd5+ {[%emt 0:00:30]} Kf8 {[%emt 0:00:30]} 25. Nc3 {[%emt 0:00:56]} Bb7 {[%emt 0:00:30]} 26. Bxb7 {[%emt 0:00:47]} Rxb7 {[%emt 0:04:30]} 27. Rd1 {[%emt 0:00:49]} Nc6 {[%emt 0:01:30]} 28. a3 {[%emt 0:02:28]} Ne5 {[%emt 0:03:30]} 29. b3 {[%emt 0:00:53]} Ng4 {[%emt 0:00:30]} 30. h3 {[%emt 0:01:43]} Nf6 {[%emt 0:03:30]} 31. Rd8+ {[%emt 0:02:23]} Ke7 {[%emt 0:00:30]} 32. Rd3 {[%emt 0:01:30]} h4 {[%emt 0:02:30]} 33. b4 {[%emt 0:02:16]} g5 {[%emt 0:10:30]} 34. Kb3 {[%emt 0:04:05]} Rd7 {[%emt 0:09:06]} 35. Kc2 {[%emt 0:03:19]} Rxd3 {[%emt 0:02:03]} 36. Kxd3 {[%emt 0:00:04]} Nh5 {[%emt 0:00:05]} 37. Ne2 {[%emt 0:01:15]} e5 {[%emt 0:01:03]} 38. a4 {[%emt 0:01:47]} f5 {[%emt 0:00:19]} 39. Ke3 {[%emt 0:01:22]} Kd6 {[%emt 0:03:07]} 40. Kd3 {[%emt 0:00:59]} Kc6 {[%emt 0:01:47]} 41. Kc3 {[%emt 0:10:54]} a5 {[%emt 0:03:30]} 42. bxa5 {[%emt 0:01:30]} bxa5 {[%emt 0:00:00]} 43. Nc1 {[%emt 0:00:30]} Nf4 {[%emt 0:01:00]} 44. Nb3 {[%emt 0:00:30]} Nxg2 {[%emt 0:01:30]} 45. Nxa5+ {[%emt 0:00:30]} Kc7 {[%emt 0:01:30]} 46. c5 {[%emt 0:01:57]} g4 {[%emt 0:00:30]} 0-1

[Event "4th Chessfestival Gredine 2018"]
[Site "Ortisei"]
[Date "2018.06.20"]
[Round "5.16"]
[White "Chennaoui, Yasin"]
[Black "Thiel, Thomas"]
[Result "1/2-1/2"]
[ECO "A12"]
[WhiteElo "2002"]
[BlackElo "2261"]
[Annotator "NA"]
[PlyCount "42"]
[EventDate "2018.06.16"]
[EventType "swiss"]
[EventCountry "ITA"]
[SourceTitle "playchess.com"]
[Source "ChessBase"]
[SourceQuality "1"]
[TimeControl "40/5400+30:1800+30"]

1. c4 {[%emt 0:00:30]} c6 {[%emt 0:01:00]} 2. b3 {[%emt 0:00:30]} d5 {[%emt 0:00:30]} 3. Bb2 {[%emt 0:00:30]} Bf5 {[%emt 0:00:30]} 4. Nf3 {[%emt 0:00:30]} e6 {[%emt 0:00:30]} 5. e3 {[%emt 0:00:30]} Nd7 {[%emt 0:02:30]} 6. Nc3 {[%emt 0:01:30]} Ngf6 {[%emt 0:02:30]} 7. Rc1 {[%emt 0:07:30]} Bd6 {[%emt 0:01:30]} 8. d4 {[%emt 0:00:30]} Qe7 {[%emt 0:00:30]} 9. Bd3 {[%emt 0:01:30]} Bg6 {[%emt 0:00:30]} 10. Bxg6 {[%emt 0:02:30]} hxg6 {[%emt 0:00:00]} 11. h3 {[%emt 0:03:30]} Rd8 {[%emt 0:00:00]} 12. Qe2 {[%emt 0:02:30]} a6 {[%emt 0:05:30]} 13. e4 {[%emt 0:04:30]} dxe4 {[%emt 0:18:30]} 14. Nxe4 {[%emt 0:02:30]} Nxe4 {[%emt 0:00:30]} 15. Qxe4 {[%emt 0:00:30]} Bb4+ {[%emt 0:00:30]} 16. Bc3 {[%emt 0:01:30]} Nf6 {[%emt 0:04:30]} 17. Qe3 {[%emt 0:01:30]} Bxc3+ {[%emt 0:28:30]} 18. Rxc3 {[%emt 0:01:30]} Ng4 {[%emt 0:02:30]} 19. Qd2 {[%emt 0:02:30]} c5 {[%emt 0:01:30]} 20. Rd3 {[%emt 0:05:30]} cxd4 {[%emt 0:00:30]} 21. Rxd4 {[%emt 0:01:30]} Nh6 {[%emt 0:02:30]} 1/2-1/2

[Event "4th Chessfestival Gredine 2018"]
[Site "Ortisei"]
[Date "2018.06.20"]
[Round "5.17"]
[White "Jaracz, Barbara"]
[Black "Voltolini, Giuseppe"]
[Result "1/2-1/2"]
[ECO "C06"]
[WhiteElo "2246"]
[BlackElo "2150"]
[Annotator "NA"]
[PlyCount "71"]
[EventDate "2018.06.16"]
[EventType "swiss"]
[EventCountry "ITA"]
[SourceTitle "playchess.com"]
[Source "ChessBase"]
[SourceQuality "1"]
[TimeControl "40/5400+30:1800+30"]

1. e4 {[%emt 0:00:30]} e6 {[%emt 0:01:00]} 2. d4 {[%emt 0:00:00]} d5 {[%emt 0:00:30]} 3. Nd2 {[%emt 0:00:00]} Nf6 {[%emt 0:00:00]} 4. e5 {[%emt 0:00:30]} Nfd7 {[%emt 0:00:00]} 5. c3 {[%emt 0:00:30]} c5 {[%emt 0:00:30]} 6. Bd3 {[%emt 0:00:00]} Nc6 {[%emt 0:01:30]} 7. Ne2 {[%emt 0:00:00]} cxd4 {[%emt 0:00:30]} 8. cxd4 {[%emt 0:00:00]} f6 {[%emt 0:00:30]} 9. exf6 {[%emt 0:00:00]} Nxf6 {[%emt 0:00:30]} 10. O-O {[%emt 0:01:30]} Bd6 {[%emt 0:00:30]} 11. Nf3 {[%emt 0:00:30]} Qc7 {[%emt 0:00:30]} 12. Nc3 {[%emt 0:03:30]} a6 {[%emt 0:00:30]} 13. Be3 {[%emt 0:03:30]} O-O {[%emt 0:02:30]} 14. Rc1 {[%emt 0:00:30]} Qe7 {[%emt 0:11:30]} 15. Re1 {[%emt 0:13:30]} Bd7 {[%emt 0:19:30]} 16. a3 {[%emt 0:10:30]} Rae8 {[%emt 0:10:30]} 17. Bg5 {[%emt 0:07:30]} Qd8 {[%emt 0:04:30]} 18. Bb1 {[%emt 0:11:30]} Re7 {[%emt 0:11:30]} 19. Ne5 {[%emt 0:04:30]} Qb8 {[%emt 0:04:30]} 20. f4 {[%emt 0:16:30]} Qa7 {[%emt 0:04:30]} 21. Nxc6 {[%emt 0:00:30]} bxc6 {[%emt 0:00:30]} 22. Na4 {[%emt 0:02:30]} h6 {[%emt 0:01:30]} 23. Bxf6 {[%emt 0:01:30]} Rxf6 {[%emt 0:00:30]} 24. g3 {[%emt 0:00:30]} e5 {[%emt 0:11:39]} 25. fxe5 {[%emt 0:00:30]} Rxe5 {[%emt 0:00:14]} 26. Rxe5 {[%emt 0:00:30]} Bxe5 {[%emt 0:00:10]} 27. Nc5 {[%emt 0:01:30]} Bd6 {[%emt 0:01:42]} 28. Nxd7 {[%emt 0:07:17]} Qxd7 {[%emt 0:00:08]} 29. Qd3 {[%emt 0:01:05]} Qe6 {[%emt 0:01:00]} 30. Kg2 {[%emt 0:03:38]} Bc7 {[%emt 0:02:56]} 31. Qxa6 {[%emt 0:04:39]} Qe3 {[%emt 0:00:44]} 32. Rxc6 {[%emt 0:01:59]} Rxc6 {[%emt 0:00:52]} 33. Qxc6 {[%emt 0:01:07]} Qe2+ {[%emt 0:00:17]} 34. Kh3 {[%emt 0:01:04]} Qh5+ {[%emt 0:00:16]} 35. Kg2 {[%emt 0:00:03]} Qe2+ {[%emt 0:00:07]} 36. Kh3 {[%emt 0:00:02]} 1/2-1/2

[Event "4th Chessfestival Gredine 2018"]
[Site "Ortisei"]
[Date "2018.06.20"]
[Round "5.18"]
[White "Molina, Fabrizio"]
[Black "Behling, Robert"]
[Result "1-0"]
[ECO "D00"]
[WhiteElo "2212"]
[BlackElo "2128"]
[Annotator "NA"]
[PlyCount "57"]
[EventDate "2018.06.16"]
[EventType "swiss"]
[EventCountry "ITA"]
[SourceTitle "playchess.com"]
[Source "ChessBase"]
[SourceQuality "1"]
[TimeControl "40/5400+30:1800+30"]

1. d4 {[%emt 0:02:30]} d5 {[%emt 0:01:00]} 2. Bf4 {[%emt 0:00:30]} Nf6 {[%emt 0:00:30]} 3. e3 {[%emt 0:00:30]} c5 {[%emt 0:00:30]} 4. c3 {[%emt 0:00:00]} Nc6 {[%emt 0:00:30]} 5. Nd2 {[%emt 0:00:00]} cxd4 {[%emt 0:00:30]} 6. exd4 {[%emt 0:00:30]} Bf5 {[%emt 0:00:30]} 7. Qb3 {[%emt 0:02:30]} Qc8 {[%emt 0:00:30]} 8. Ngf3 {[%emt 0:00:30]} e6 {[%emt 0:00:00]} 9. Nh4 {[%emt 0:02:30]} Be4 {[%emt 0:00:00]} 10. Nhf3 {[%emt 0:07:30]} Be7 {[%emt 0:09:30]} 11. Nxe4 {[%emt 0:01:30]} Nxe4 {[%emt 0:00:30]} 12. Bd3 {[%emt 0:03:30]} Bd6 {[%emt 0:05:30]} 13. Bxd6 {[%emt 0:07:30]} Nxd6 {[%emt 0:00:30]} 14. h4 {[%emt 0:03:30]} Qc7 {[%emt 0:04:30]} 15. Qc2 {[%emt 0:04:30]} O-O-O {[%emt 0:03:30]} 16. O-O {[%emt 0:10:30]} Kb8 {[%emt 0:10:30]} 17. Rfe1 {[%emt 0:00:30]} g6 {[%emt 0:06:30]} 18. b3 {[%emt 0:01:30]} Rc8 {[%emt 0:00:30]} 19. Qd2 {[%emt 0:00:30]} h6 {[%emt 0:03:30]} 20. c4 {[%emt 0:03:30]} dxc4 {[%emt 0:07:30]} 21. bxc4 {[%emt 0:02:30]} g5 {[%emt 0:01:30]} 22. c5 {[%emt 0:08:30]} Ne8 {[%emt 0:03:30]} 23. Rab1 {[%emt 0:03:30]} Ka8 {[%emt 0:06:30]} 24. hxg5 {[%emt 0:04:30]} Qd8 {[%emt 0:04:30]} 25. Qb2 {[%emt 0:07:30]} Na5 {[%emt 0:00:30]} 26. Be4 {[%emt 0:00:30]} Rb8 {[%emt 0:02:30]} 27. Ne5 {[%emt 0:04:37]} Qc7 {[%emt 0:06:30]} 28. Re3 {[%emt 0:01:24]} f6 {[%emt 0:01:30]} 29. Ra3 {[%emt 0:00:57]} 1-0

[Event "4th Chessfestival Gredine 2018"]
[Site "Ortisei"]
[Date "2018.06.20"]
[Round "5.19"]
[White "Movileanu, Daniela"]
[Black "Kornitzky, Tino"]
[Result "1/2-1/2"]
[ECO "B01"]
[WhiteElo "2199"]
[BlackElo "2112"]
[Annotator "NA"]
[PlyCount "75"]
[EventDate "2018.06.16"]
[EventType "swiss"]
[EventCountry "ITA"]
[SourceTitle "playchess.com"]
[Source "ChessBase"]
[SourceQuality "1"]
[TimeControl "40/5400+30:1800+30"]

1. e4 {[%emt 0:00:30]} d5 {[%emt 0:01:00]} 2. exd5 {[%emt 0:00:00]} Qxd5 {[%emt 0:00:00]} 3. Nc3 {[%emt 0:00:00]} Qa5 {[%emt 0:00:00]} 4. d4 {[%emt 0:00:30]} Nf6 {[%emt 0:00:00]} 5. Bc4 {[%emt 0:00:30]} Nc6 {[%emt 0:00:00]} 6. d5 {[%emt 0:03:30]} Nb4 {[%emt 0:02:30]} 7. Nge2 {[%emt 0:07:30]} c6 {[%emt 0:07:30]} 8. dxc6 {[%emt 0:08:30]} Nxc6 {[%emt 0:01:30]} 9. Bd2 {[%emt 0:02:30]} e6 {[%emt 0:12:30]} 10. O-O {[%emt 0:03:30]} Be7 {[%emt 0:07:30]} 11. Nd5 {[%emt 0:06:30]} Qd8 {[%emt 0:02:30]} 12. Nxe7 {[%emt 0:00:00]} Qxe7 {[%emt 0:00:00]} 13. Ng3 {[%emt 0:01:00]} O-O {[%emt 0:03:00]} 14. c3 {[%emt 0:03:30]} b6 {[%emt 0:04:30]} 15. Qe2 {[%emt 0:02:30]} Bb7 {[%emt 0:03:30]} 16. Rfe1 {[%emt 0:02:30]} Rfe8 {[%emt 0:03:30]} 17. Rad1 {[%emt 0:02:30]} h6 {[%emt 0:03:30]} 18. Bd3 {[%emt 0:11:30]} Rad8 {[%emt 0:03:30]} 19. Bb1 {[%emt 0:04:30]} Rd7 {[%emt 0:07:30]} 20. Bf4 {[%emt 0:00:30]} Red8 {[%emt 0:04:30]} 21. h3 {[%emt 0:04:30]} Rxd1 {[%emt 0:02:30]} 22. Rxd1 {[%emt 0:00:30]} Rd7 {[%emt 0:04:30]} 23. Rxd7 {[%emt 0:03:30]} Qxd7 {[%emt 0:00:30]} 24. Qd3 {[%emt 0:00:00]} Qxd3 {[%emt 0:05:30]} 25. Bxd3 {[%emt 0:02:00]} Ne7 {[%emt 0:00:00]} 26. c4 {[%emt 0:04:30]} Kf8 {[%emt 0:03:10]} 27. f3 {[%emt 0:02:30]} Nc6 {[%emt 0:04:08]} 28. a3 {[%emt 0:02:30]} Ke7 {[%emt 0:00:30]} 29. Kf2 {[%emt 0:00:00]} Nd7 {[%emt 0:04:59]} 30. b4 {[%emt 0:03:00]} Nce5 {[%emt 0:00:55]} 31. Be2 {[%emt 0:00:30]} Ba6 {[%emt 0:01:38]} 32. b5 {[%emt 0:01:56]} Bb7 {[%emt 0:00:43]} 33. Bd2 {[%emt 0:02:19]} a5 {[%emt 0:02:33]} 34. Ke3 {[%emt 0:06:40]} f6 {[%emt 0:02:46]} 35. Bc3 {[%emt 0:01:25]} Nf7 {[%emt 0:00:19]} 36. Nf1 {[%emt 0:05:46]} Nd6 {[%emt 0:01:09]} 37. Nd2 {[%emt 0:01:04]} Nc5 {[%emt 0:00:33]} 38. Nb1 1/2-1/2

[Event "4th Chessfestival Gredine 2018"]
[Site "Ortisei"]
[Date "2018.06.20"]
[Round "5.20"]
[White "Wiesinger, Robert"]
[Black "Cappelletto, Joshuaede"]
[Result "1/2-1/2"]
[ECO "B06"]
[WhiteElo "2199"]
[BlackElo "2000"]
[Annotator "NA"]
[PlyCount "73"]
[EventDate "2018.06.16"]
[EventType "swiss"]
[EventCountry "ITA"]
[SourceTitle "playchess.com"]
[Source "ChessBase"]
[SourceQuality "1"]
[TimeControl "40/5400+30:1800+30"]

1. e4 {[%emt 0:00:30]} g6 {[%emt 0:03:00]} 2. d4 {[%emt 0:00:00]} Bg7 {[%emt 0:02:30]} 3. Nf3 {[%emt 0:01:00]} d6 {[%emt 0:02:30]} 4. Bc4 {[%emt 0:02:30]} Nc6 {[%emt 0:02:30]} 5. c3 {[%emt 0:04:30]} Nf6 {[%emt 0:04:30]} 6. Qe2 {[%emt 0:00:30]} e5 {[%emt 0:21:30]} 7. O-O {[%emt 1:24:30]} O-O {[%emt 0:02:30]} 8. Bb5 {[%emt 0:00:00]} Nd7 {[%emt 0:09:30]} 9. Be3 {[%emt 0:00:00]} a6 {[%emt 0:03:30]} 10. Bxc6 {[%emt 0:00:00]} bxc6 {[%emt 0:00:30]} 11. Nbd2 {[%emt 0:00:00]} a5 {[%emt 0:07:30]} 12. Rfd1 {[%emt 0:00:00]} Ba6 {[%emt 0:01:30]} 13. c4 {[%emt 0:00:00]} Qe7 {[%emt 0:03:30]} 14. dxe5 {[%emt 0:00:00]} Nxe5 {[%emt 0:00:30]} 15. Bd4 {[%emt 0:00:00]} d5 {[%emt 0:09:30]} 16. Bxe5 {[%emt 0:00:00]} Bxe5 {[%emt 0:00:30]} 17. Nxe5 {[%emt 0:00:00]} Qxe5 {[%emt 0:00:00]} 18. Qd3 {[%emt 0:00:18]} Qxb2 {[%emt 0:09:36]} 19. exd5 {[%emt 0:00:05]} cxd5 {[%emt 0:05:39]} 20. Qxd5 {[%emt 0:00:39]} Rad8 {[%emt 0:01:26]} 21. Qxa5 {[%emt 0:00:56]} Bc8 {[%emt 0:02:56]} 22. Nf1 {[%emt 0:01:18]} Bg4 {[%emt 0:01:58]} 23. f3 {[%emt 0:00:53]} Be6 {[%emt 0:00:30]} 24. Qxc7 {[%emt 0:00:42]} Rc8 {[%emt 0:00:23]} 25. Qd6 {[%emt 0:00:16]} Rxc4 {[%emt 0:00:18]} 26. Ne3 {[%emt 0:00:25]} Rc3 {[%emt 0:00:17]} 27. Qd4 {[%emt 0:02:12]} Rfc8 {[%emt 0:00:44]} 28. a4 {[%emt 0:00:36]} Qb3 {[%emt 0:02:39]} 29. Rdb1 {[%emt 0:00:47]} Rd3 {[%emt 0:00:45]} 30. Rxb3 {[%emt 0:01:19]} Rxd4 {[%emt 0:00:05]} 31. Rba3 {[%emt 0:00:28]} Rd2 {[%emt 0:01:04]} 32. a5 {[%emt 0:00:10]} Rc7 {[%emt 0:01:19]} 33. a6 {[%emt 0:01:11]} Ra7 {[%emt 0:00:09]} 34. Kf1 {[%emt 0:00:40]} Rd6 {[%emt 0:00:44]} 35. Kf2 {[%emt 0:00:25]} Kg7 {[%emt 0:00:19]} 36. Kg3 {[%emt 0:00:23]} h5 {[%emt 0:01:32]} 37. h4 1/2-1/2

[Event "4th Chessfestival Gredine 2018"]
[Site "Ortisei"]
[Date "2018.06.21"]
[Round "6.7"]
[White "Seyb, Dieter"]
[Black "Hecht, Hans-Joachim"]
[Result "1/2-1/2"]
[ECO "B08"]
[WhiteElo "2179"]
[BlackElo "2327"]
[Annotator "NA"]
[PlyCount "50"]
[EventDate "2018.06.16"]
[EventType "swiss"]
[EventCountry "ITA"]
[SourceTitle "playchess.com"]
[Source "ChessBase"]
[SourceQuality "1"]
[TimeControl "40/5400+30:1800+30"]

1. e4 {[%emt 0:00:30]} d6 {[%emt 0:01:00]} 2. d4 {[%emt 0:00:00]} g6 {[%emt 0:00:00]} 3. Nc3 {[%emt 0:00:00]} Bg7 {[%emt 0:00:00]} 4. Nf3 {[%emt 0:00:00]} Nf6 {[%emt 0:02:30]} 5. Be2 {[%emt 0:00:00]} O-O {[%emt 0:00:00]} 6. O-O {[%emt 0:00:30]} c6 {[%emt 0:00:00]} 7. h3 {[%emt 0:00:30]} Nbd7 {[%emt 0:03:30]} 8. e5 {[%emt 0:00:30]} Nd5 {[%emt 0:00:30]} 9. exd6 {[%emt 0:07:30]} exd6 {[%emt 0:00:30]} 10. Nxd5 {[%emt 0:00:30]} cxd5 {[%emt 0:00:00]} 11. c3 {[%emt 0:01:30]} h6 {[%emt 0:05:00]} 12. Qb3 {[%emt 0:06:30]} Nf6 {[%emt 0:01:30]} 13. Bf4 {[%emt 0:00:30]} Qc7 {[%emt 0:10:30]} 14. Bd3 {[%emt 0:07:30]} Be6 {[%emt 0:03:30]} 15. Rfe1 {[%emt 0:02:30]} g5 {[%emt 0:07:30]} 16. Bh2 {[%emt 0:02:30]} Ne4 {[%emt 0:17:30]} 17. Rad1 {[%emt 0:04:30]} Rfe8 {[%emt 0:10:30]} 18. Re2 {[%emt 0:18:30]} f5 {[%emt 0:06:30]} 19. Nd2 {[%emt 0:08:30]} f4 {[%emt 0:06:30]} 20. Nf1 {[%emt 0:01:30]} Bf7 {[%emt 0:00:30]} 21. Rde1 {[%emt 0:00:30]} a6 {[%emt 0:03:59]} 22. f3 {[%emt 0:06:30]} Nf6 {[%emt 0:00:11]} 23. g3 {[%emt 0:01:30]} Rxe2 {[%emt 0:03:45]} 24. Rxe2 {[%emt 0:00:30]} Nh5 {[%emt 0:00:34]} 25. g4 {[%emt 0:01:30]} Nf6 {[%emt 0:02:42]} 1/2-1/2